[Event "Titled Tuesday Blitz January 31 Late 2023"]
[White "Bilych, Olexiy"]
[Black "Karas, Marek"]
[WhiteFideId "14156504"]
[BlackFideId "14928558"]
[WhiteElo "2441"]
[BlackElo "2227"]
[Result "1-0"]
[Round "06"]
[TimeControl "180+2"]
[Date "2023.01.31"]
[WhiteClock "0:00:18"]
[BlackClock "0:00:01"]

1. d4 {[%clk 0:03:00]}  Nf6 {[%clk 0:02:58]} 2. c4 {[%clk 0:03:01]}  e6 {[%clk 0:02:57]} 3. Nf3 {[%clk 0:03:02]}  b6 {[%clk 0:02:55]} 4. g3 {[%clk 0:03:02]}  Bb7 {[%clk 0:02:56]} 5. Bg2 {[%clk 0:03:02]}  Be7 {[%clk 0:02:56]} 6. O-O {[%clk 0:03:02]}  O-O {[%clk 0:02:56]} 7. Re1 {[%clk 0:03:03]}  d5 {[%clk 0:02:53]} 8. cxd5 {[%clk 0:03:00]}  exd5 {[%clk 0:02:54]} 9. Nc3 {[%clk 0:03:00]}  Nbd7 {[%clk 0:02:53]} 10. Bf4 {[%clk 0:03:01]}  c6 {[%clk 0:02:50]} 11. Rc1 {[%clk 0:02:59]}  Re8 {[%clk 0:02:51]} 12. Qb3 {[%clk 0:02:58]}  Nf8 {[%clk 0:02:47]} 13. Bh3 {[%clk 0:02:48]}  Bc8 {[%clk 0:02:44]} 14. Bg2 {[%clk 0:02:32]}  Ng6 {[%clk 0:02:39]} 15. Bg5 {[%clk 0:02:23]}  Be6 {[%clk 0:02:39]} 16. e3 {[%clk 0:02:14]}  h6 {[%clk 0:02:34]} 17. Bxf6 {[%clk 0:02:14]}  Bxf6 {[%clk 0:02:35]} 18. Qa4 {[%clk 0:02:13]}  Qd6 {[%clk 0:02:34]} 19. e4 {[%clk 0:02:10]}  b5 {[%clk 0:02:27]} 20. Qa6 {[%clk 0:01:59]}  Bc8 {[%clk 0:02:20]} 21. Nxb5 {[%clk 0:01:59]}  Qb8 {[%clk 0:02:01]} 22. Qxc6 {[%clk 0:01:54]}  Bb7 {[%clk 0:01:53]} 23. Qc7 {[%clk 0:01:43]}  dxe4 {[%clk 0:01:49]} 24. Nd6 {[%clk 0:01:43]}  Re7 {[%clk 0:01:39]} 25. Qxb8+ {[%clk 0:01:42]}  Rxb8 {[%clk 0:01:40]} 26. Nxb7 {[%clk 0:01:24]}  Rbxb7 {[%clk 0:01:28]} 27. Ne5 {[%clk 0:01:18]}  Rxb2 {[%clk 0:01:16]} 28. Nxg6 {[%clk 0:01:00]}  fxg6 {[%clk 0:01:14]} 29. Bxe4 {[%clk 0:01:00]}  Kh7 {[%clk 0:01:01]} 30. Rc6 {[%clk 0:00:50]}  Rxa2 {[%clk 0:00:50]} 31. Bxg6+ {[%clk 0:00:49]}  Kxg6 {[%clk 0:00:45]} 32. Rxe7 {[%clk 0:00:49]}  Rd2 {[%clk 0:00:42]} 33. Rxa7 {[%clk 0:00:47]}  Rxd4 {[%clk 0:00:42]} 34. Kg2 {[%clk 0:00:46]}  Rb4 {[%clk 0:00:40]} 35. h4 {[%clk 0:00:45]}  Rd4 {[%clk 0:00:39]} 36. Ra3 {[%clk 0:00:43]}  Re4 {[%clk 0:00:38]} 37. Re3 {[%clk 0:00:42]}  Ra4 {[%clk 0:00:36]} 38. f3 {[%clk 0:00:41]}  Kf7 {[%clk 0:00:36]} 39. Kh3 {[%clk 0:00:36]}  Ra1 {[%clk 0:00:34]} 40. Rc7+ {[%clk 0:00:37]}  Kg6 {[%clk 0:00:34]} 41. Kg4 {[%clk 0:00:36]}  h5+ {[%clk 0:00:29]} 42. Kh3 {[%clk 0:00:33]}  Rh1+ {[%clk 0:00:29]} 43. Kg2 {[%clk 0:00:33]}  Ra1 {[%clk 0:00:30]} 44. Re2 {[%clk 0:00:32]}  Ra3 {[%clk 0:00:29]} 45. Rc5 {[%clk 0:00:31]}  Ra6 {[%clk 0:00:26]} 46. Rd5 {[%clk 0:00:31]}  Rb6 {[%clk 0:00:26]} 47. Re3 {[%clk 0:00:29]}  Ra6 {[%clk 0:00:26]} 48. g4 {[%clk 0:00:29]}  hxg4 {[%clk 0:00:26]} 49. h5+ {[%clk 0:00:29]}  Kh6 {[%clk 0:00:23]} 50. fxg4 {[%clk 0:00:30]}  Ra4 {[%clk 0:00:19]} 51. Kg3 {[%clk 0:00:29]}  Ra1 {[%clk 0:00:20]} 52. Re6 {[%clk 0:00:27]}  Rg1+ {[%clk 0:00:18]} 53. Kf3 {[%clk 0:00:27]}  Kh7 {[%clk 0:00:13]} 54. Rb5 {[%clk 0:00:25]}  Kh6 {[%clk 0:00:12]} 55. Rb4 {[%clk 0:00:21]}  Kh7 {[%clk 0:00:08]} 56. Kf2 {[%clk 0:00:21]}  Rd1 {[%clk 0:00:05]} 57. Rbe4 {[%clk 0:00:20]}  Rd2+ {[%clk 0:00:04]} 58. Kf3 {[%clk 0:00:20]}  Rd1 {[%clk 0:00:03]} 59. Ra6 {[%clk 0:00:20]}  Rf1+ {[%clk 0:00:03]} 60. Kg2 {[%clk 0:00:20]}  Rc1 {[%clk 0:00:02]} 61. Ra8 {[%clk 0:00:20]}  Rc2+ {[%clk 0:00:02]} 62. Kf3 {[%clk 0:00:20]}  Rc3+ {[%clk 0:00:02]} 63. Kf4 {[%clk 0:00:20]}  Rc5 {[%clk 0:00:03]} 64. Ree8 {[%clk 0:00:19]}  Bg5+ {[%clk 0:00:03]} 65. Ke4 {[%clk 0:00:19]}  g6 {[%clk 0:00:02]} 66. Ra7+ {[%clk 0:00:18]}  Kh6 {[%clk 0:00:01]} 67. Rh8# {[%clk 0:00:18]} 1-0


[Site "https://www.chess.com"]

[Event "Titled Tuesday Blitz January 31 Late 2023"]
[White "Hernandez Sanchez, Elvis De La Caridad"]
[Black "Bjelobrk, Igor"]
[WhiteFideId "6400353"]
[BlackFideId "4300726"]
[WhiteElo "2243"]
[BlackElo "2403"]
[Result "0-1"]
[Round "06"]
[TimeControl "180+2"]
[Date "2023.01.31"]
[WhiteClock "0:00:03"]
[BlackClock "0:00:10"]

1. Nf3 {[%clk 0:02:57]}  Nf6 {[%clk 0:02:50]} 2. c4 {[%clk 0:02:57]}  e6 {[%clk 0:02:48]} 3. Nc3 {[%clk 0:02:55]}  d5 {[%clk 0:02:47]} 4. e3 {[%clk 0:02:54]}  b6 {[%clk 0:02:44]} 5. b3 {[%clk 0:02:53]}  Bb7 {[%clk 0:02:43]} 6. Bb2 {[%clk 0:02:53]}  a6 {[%clk 0:02:37]} 7. Qc2 {[%clk 0:02:46]}  c5 {[%clk 0:02:37]} 8. cxd5 {[%clk 0:02:43]}  exd5 {[%clk 0:02:36]} 9. d4 {[%clk 0:02:42]}  Nbd7 {[%clk 0:02:35]} 10. Be2 {[%clk 0:02:35]}  Be7 {[%clk 0:02:34]} 11. O-O {[%clk 0:02:35]}  O-O {[%clk 0:02:34]} 12. Rad1 {[%clk 0:02:33]}  Rc8 {[%clk 0:02:33]} 13. Qb1 {[%clk 0:02:31]}  Re8 {[%clk 0:02:32]} 14. Rfe1 {[%clk 0:02:24]}  Bf8 {[%clk 0:02:24]} 15. Bf1 {[%clk 0:02:23]}  Qc7 {[%clk 0:02:07]} 16. g3 {[%clk 0:02:20]}  Rcd8 {[%clk 0:02:05]} 17. Bg2 {[%clk 0:02:19]}  c4 {[%clk 0:02:04]} 18. Ne5 {[%clk 0:02:10]}  Nxe5 {[%clk 0:01:54]} 19. dxe5 {[%clk 0:02:11]}  Rxe5 {[%clk 0:01:54]} 20. bxc4 {[%clk 0:02:09]}  Bb4 {[%clk 0:01:22]} 21. a3 {[%clk 0:02:01]}  Ba5 {[%clk 0:01:18]} 22. Rf1 {[%clk 0:01:42]}  Rh5 {[%clk 0:00:49]} 23. Ne2 {[%clk 0:01:40]}  Ne4 {[%clk 0:00:44]} 24. Nf4 {[%clk 0:01:33]}  Rh6 {[%clk 0:00:43]} 25. Bxe4 {[%clk 0:01:16]}  dxe4 {[%clk 0:00:41]} 26. Rxd8+ {[%clk 0:01:17]}  Qxd8 {[%clk 0:00:42]} 27. c5 {[%clk 0:00:53]}  Qc8 {[%clk 0:00:34]} 28. cxb6 {[%clk 0:00:51]}  Rxb6 {[%clk 0:00:32]} 29. Qa1 {[%clk 0:00:46]}  Qf8 {[%clk 0:00:24]} 30. Rd1 {[%clk 0:00:36]}  f6 {[%clk 0:00:17]} 31. Qa2+ {[%clk 0:00:32]}  Kh8 {[%clk 0:00:14]} 32. Rd7 {[%clk 0:00:27]}  Bc8 {[%clk 0:00:08]} 33. Rf7 {[%clk 0:00:19]}  Qg8 {[%clk 0:00:08]} 34. Nh5 {[%clk 0:00:20]}  Rxb2 {[%clk 0:00:08]} 35. Qxb2 {[%clk 0:00:16]}  Qxf7 {[%clk 0:00:08]} 36. Qb8 {[%clk 0:00:16]}  Qg8 {[%clk 0:00:08]} 37. Nf4 {[%clk 0:00:16]}  Bc3 {[%clk 0:00:08]} 38. Qc7 {[%clk 0:00:16]}  Be5 {[%clk 0:00:08]} 39. Qc5 {[%clk 0:00:14]}  Bxf4 {[%clk 0:00:08]} 40. exf4 {[%clk 0:00:13]}  h6 {[%clk 0:00:09]} 41. h4 {[%clk 0:00:13]}  Qe6 {[%clk 0:00:09]} 42. h5 {[%clk 0:00:13]}  Kh7 {[%clk 0:00:10]} 43. Qc1 {[%clk 0:00:12]}  Qf5 {[%clk 0:00:10]} 44. Qd1 {[%clk 0:00:13]}  Be6 {[%clk 0:00:10]} 45. Kg2 {[%clk 0:00:13]}  Bf7 {[%clk 0:00:10]} 46. Qe2 {[%clk 0:00:10]}  Bxh5 {[%clk 0:00:10]} 47. Qf1 {[%clk 0:00:02]}  Bf3+ {[%clk 0:00:10]} 48. Kg1 {[%clk 0:00:03]}  Qh5 {[%clk 0:00:11]} 49. a4 {[%clk 0:00:03]}  Qh1# {[%clk 0:00:10]} 0-1


[Site "https://www.chess.com"]

[Event "Titled Tuesday Blitz January 31 Late 2023"]
[White "Senthilkumar, Pranav"]
[Black "Real_OceanStorm"]
[WhiteFideId "2083477"]
[WhiteElo "1854"]
[BlackElo "2671"]
[Result "0-1"]
[Round "06"]
[TimeControl "180+2"]
[Date "2023.01.31"]
[WhiteClock "0:00:20"]
[BlackClock "0:01:04"]

1. d4 {[%clk 0:03:00]}  Nf6 {[%clk 0:03:00]} 2. c4 {[%clk 0:03:00]}  c6 {[%clk 0:02:59]} 3. Nc3 {[%clk 0:02:58]}  d5 {[%clk 0:02:59]} 4. e3 {[%clk 0:02:57]}  Bf5 {[%clk 0:02:56]} 5. Qb3 {[%clk 0:02:52]}  Qb6 {[%clk 0:02:56]} 6. c5 {[%clk 0:02:52]}  Qxb3 {[%clk 0:02:56]} 7. axb3 {[%clk 0:02:53]}  h5 {[%clk 0:02:56]} 8. b4 {[%clk 0:02:53]}  g6 {[%clk 0:02:57]} 9. b5 {[%clk 0:02:53]}  a6 {[%clk 0:02:55]} 10. bxc6 {[%clk 0:02:51]}  Nxc6 {[%clk 0:02:55]} 11. Nf3 {[%clk 0:02:44]}  Bg7 {[%clk 0:02:55]} 12. Bb5 {[%clk 0:02:43]}  O-O {[%clk 0:02:43]} 13. Bxc6 {[%clk 0:02:42]}  bxc6 {[%clk 0:02:44]} 14. Ne5 {[%clk 0:02:42]}  Rfc8 {[%clk 0:02:44]} 15. O-O {[%clk 0:02:41]}  Nd7 {[%clk 0:02:43]} 16. Nxd7 {[%clk 0:02:39]}  Bxd7 {[%clk 0:02:44]} 17. Bd2 {[%clk 0:02:39]}  e5 {[%clk 0:02:45]} 18. Ne2 {[%clk 0:02:36]}  exd4 {[%clk 0:02:30]} 19. Nxd4 {[%clk 0:02:36]}  Rcb8 {[%clk 0:02:30]} 20. b4 {[%clk 0:02:34]}  Re8 {[%clk 0:02:30]} 21. Bc3 {[%clk 0:02:32]}  Reb8 {[%clk 0:02:13]} 22. Ra5 {[%clk 0:02:30]}  Bxd4 {[%clk 0:02:13]} 23. exd4 {[%clk 0:02:25]}  Bf5 {[%clk 0:02:07]} 24. Rfa1 {[%clk 0:02:21]}  Bd3 {[%clk 0:02:07]} 25. f3 {[%clk 0:02:20]}  Re8 {[%clk 0:02:07]} 26. R1a2 {[%clk 0:02:18]}  Rab8 {[%clk 0:02:07]} 27. Kf2 {[%clk 0:02:12]}  f6 {[%clk 0:02:07]} 28. Rd2 {[%clk 0:02:10]}  Bb5 {[%clk 0:02:06]} 29. Ra1 {[%clk 0:02:03]}  Kf7 {[%clk 0:02:07]} 30. Re1 {[%clk 0:02:02]}  Rxe1 {[%clk 0:02:06]} 31. Kxe1 {[%clk 0:02:03]}  Re8+ {[%clk 0:02:06]} 32. Kf2 {[%clk 0:02:04]}  g5 {[%clk 0:02:06]} 33. Ra2 {[%clk 0:01:52]}  Bc4 {[%clk 0:02:06]} 34. Rc2 {[%clk 0:01:51]}  Kg6 {[%clk 0:02:06]} 35. h3 {[%clk 0:01:48]}  h4 {[%clk 0:02:06]} 36. f4 {[%clk 0:01:19]}  gxf4 {[%clk 0:01:44]} 37. Bd2 {[%clk 0:01:00]}  Re4 {[%clk 0:01:43]} 38. Bc3 {[%clk 0:00:59]}  Re3 {[%clk 0:01:43]} 39. Bb2 {[%clk 0:00:54]}  Kf5 {[%clk 0:01:37]} 40. Bc1 {[%clk 0:00:51]}  Rb3 {[%clk 0:01:37]} 41. Rb2 {[%clk 0:00:46]}  Rc3 {[%clk 0:01:35]} 42. Bd2 {[%clk 0:00:45]}  Rd3 {[%clk 0:01:35]} 43. Be1 {[%clk 0:00:41]}  Rxd4 {[%clk 0:01:30]} 44. Rd2 {[%clk 0:00:40]}  Re4 {[%clk 0:01:30]} 45. Rc2 {[%clk 0:00:35]}  Bb5 {[%clk 0:01:20]} 46. Rc1 {[%clk 0:00:35]}  d4 {[%clk 0:01:20]} 47. Kf3 {[%clk 0:00:35]}  Re3+ {[%clk 0:01:20]} 48. Kf2 {[%clk 0:00:35]}  Re2+ {[%clk 0:01:20]} 49. Kf3 {[%clk 0:00:35]}  d3 {[%clk 0:01:20]} 50. Bxh4 {[%clk 0:00:32]}  Re3+ {[%clk 0:01:20]} 51. Kf2 {[%clk 0:00:31]}  Ba4 {[%clk 0:01:06]} 52. g4+ {[%clk 0:00:28]}  Ke6 {[%clk 0:01:05]} 53. Re1 {[%clk 0:00:19]}  d2 {[%clk 0:01:03]} 54. Rxe3+ {[%clk 0:00:19]}  fxe3+ {[%clk 0:01:04]} 55. Kxe3 {[%clk 0:00:20]}  d1=Q {[%clk 0:01:04]} 0-1


[Site "https://www.chess.com"]

[Event "Titled Tuesday Blitz January 31 Late 2023"]
[White "Papp, Petra"]
[Black "Sztokbant, Bernardo Vainzoff"]
[WhiteFideId "739049"]
[BlackFideId "2115956"]
[WhiteElo "2343"]
[BlackElo "2213"]
[Result "0-1"]
[Round "06"]
[TimeControl "180+2"]
[Date "2023.01.31"]
[WhiteClock "0:00:52"]
[BlackClock "0:01:16"]

1. d4 {[%clk 0:02:52]}  d5 {[%clk 0:03:00]} 2. c4 {[%clk 0:02:52]}  dxc4 {[%clk 0:03:00]} 3. e3 {[%clk 0:02:52]}  Nf6 {[%clk 0:03:01]} 4. Bxc4 {[%clk 0:02:52]}  e6 {[%clk 0:03:02]} 5. Nf3 {[%clk 0:02:52]}  c5 {[%clk 0:03:02]} 6. O-O {[%clk 0:02:48]}  Be7 {[%clk 0:03:02]} 7. Qe2 {[%clk 0:02:48]}  O-O {[%clk 0:03:02]} 8. Rd1 {[%clk 0:02:48]}  cxd4 {[%clk 0:03:02]} 9. exd4 {[%clk 0:02:48]}  Nc6 {[%clk 0:03:01]} 10. a3 {[%clk 0:02:35]}  b6 {[%clk 0:03:01]} 11. Nc3 {[%clk 0:02:35]}  Na5 {[%clk 0:02:54]} 12. Bd3 {[%clk 0:02:28]}  Bb7 {[%clk 0:02:53]} 13. Bg5 {[%clk 0:01:36]}  Nb3 {[%clk 0:02:52]} 14. Bxf6 {[%clk 0:01:32]}  Bxf6 {[%clk 0:02:44]} 15. Bxh7+ {[%clk 0:01:28]}  Kxh7 {[%clk 0:02:39]} 16. Qc2+ {[%clk 0:01:28]}  Kg8 {[%clk 0:02:39]} 17. Qxb3 {[%clk 0:01:28]}  Bxf3 {[%clk 0:02:39]} 18. gxf3 {[%clk 0:01:28]}  Bxd4 {[%clk 0:02:31]} 19. f4 {[%clk 0:01:22]}  Qf6 {[%clk 0:02:17]} 20. Ne4 {[%clk 0:01:17]}  Qg6+ {[%clk 0:02:16]} 21. Ng3 {[%clk 0:01:15]}  Rad8 {[%clk 0:01:57]} 22. Rd2 {[%clk 0:01:12]}  Bc5 {[%clk 0:01:43]} 23. Rad1 {[%clk 0:01:09]}  Rxd2 {[%clk 0:01:42]} 24. Rxd2 {[%clk 0:01:09]}  Qf6 {[%clk 0:01:34]} 25. Qf3 {[%clk 0:01:04]}  Rd8 {[%clk 0:01:22]} 26. Rxd8+ {[%clk 0:00:57]}  Qxd8 {[%clk 0:01:23]} 27. b4 {[%clk 0:00:56]}  Bf8 {[%clk 0:01:16]} 28. Kg2 {[%clk 0:00:52]}  g6 {[%clk 0:01:16]} 0-1


[Site "https://www.chess.com"]

[Event "Titled Tuesday Blitz January 31 Late 2023"]
[White "Pasti, Aron"]
[Black "Bon, Michael"]
[WhiteFideId "785857"]
[BlackFideId "620696"]
[WhiteElo "2361"]
[BlackElo "2394"]
[Result "1-0"]
[Round "06"]
[TimeControl "180+2"]
[Date "2023.01.31"]
[WhiteClock "0:00:50"]
[BlackClock "0:00:12"]

1. e4 {[%clk 0:02:59]}  c5 {[%clk 0:02:59]} 2. Nf3 {[%clk 0:02:59]}  d6 {[%clk 0:03:00]} 3. d4 {[%clk 0:02:59]}  cxd4 {[%clk 0:03:00]} 4. Nxd4 {[%clk 0:03:00]}  Nf6 {[%clk 0:03:01]} 5. Nc3 {[%clk 0:03:01]}  Nc6 {[%clk 0:03:01]} 6. Bg5 {[%clk 0:02:52]}  e6 {[%clk 0:03:01]} 7. Qd2 {[%clk 0:02:50]}  a6 {[%clk 0:03:00]} 8. f4 {[%clk 0:02:49]}  h6 {[%clk 0:02:57]} 9. Bxf6 {[%clk 0:02:49]}  Qxf6 {[%clk 0:02:56]} 10. Nf3 {[%clk 0:02:49]}  Qd8 {[%clk 0:02:50]} 11. O-O-O {[%clk 0:02:47]}  Be7 {[%clk 0:02:50]} 12. g4 {[%clk 0:02:46]}  Qa5 {[%clk 0:02:50]} 13. Kb1 {[%clk 0:02:39]}  b5 {[%clk 0:02:44]} 14. e5 {[%clk 0:02:33]}  d5 {[%clk 0:02:43]} 15. h4 {[%clk 0:02:26]}  Bb7 {[%clk 0:02:38]} 16. g5 {[%clk 0:02:18]}  hxg5 {[%clk 0:02:23]} 17. fxg5 {[%clk 0:02:13]}  Qc7 {[%clk 0:02:23]} 18. Bd3 {[%clk 0:02:06]}  d4 {[%clk 0:02:04]} 19. Ne4 {[%clk 0:01:49]}  Nxe5 {[%clk 0:02:02]} 20. Qf4 {[%clk 0:01:49]}  f6 {[%clk 0:01:44]} 21. gxf6 {[%clk 0:01:45]}  gxf6 {[%clk 0:01:45]} 22. Nxd4 {[%clk 0:01:43]}  O-O-O {[%clk 0:00:44]} 23. Nxe6 {[%clk 0:01:41]}  Qc6 {[%clk 0:00:44]} 24. Nxd8 {[%clk 0:01:38]}  Rxd8 {[%clk 0:00:45]} 25. h5 {[%clk 0:01:26]}  Bd6 {[%clk 0:00:26]} 26. h6 {[%clk 0:01:12]}  Nxd3 {[%clk 0:00:18]} 27. Nxd6+ {[%clk 0:01:12]}  Rxd6 {[%clk 0:00:16]} 28. Qxd6 {[%clk 0:00:53]}  Qxd6 {[%clk 0:00:14]} 29. h7 {[%clk 0:00:53]}  Bxh1 {[%clk 0:00:14]} 30. h8=Q+ {[%clk 0:00:53]}  Kc7 {[%clk 0:00:12]} 31. Qxh1 {[%clk 0:00:50]} 1-0


[Site "https://www.chess.com"]

[Event "Titled Tuesday Blitz January 31 Late 2023"]
[White "OKEKE, Isaac Chukwudalu"]
[Black "Filgueira, Hernan"]
[WhiteFideId "8508526"]
[BlackFideId "101770"]
[WhiteElo "2155"]
[BlackElo "2283"]
[Result "0-1"]
[Round "06"]
[TimeControl "180+2"]
[Date "2023.01.31"]
[WhiteClock "0:00:11"]
[BlackClock "0:00:12"]

1. e4 {[%clk 0:02:41]}  e6 {[%clk 0:02:59]} 2. d4 {[%clk 0:02:41]}  d5 {[%clk 0:02:59]} 3. e5 {[%clk 0:02:42]}  c5 {[%clk 0:02:59]} 4. c3 {[%clk 0:02:42]}  Nc6 {[%clk 0:03:00]} 5. Nf3 {[%clk 0:02:42]}  Bd7 {[%clk 0:03:00]} 6. Be2 {[%clk 0:02:38]}  Rc8 {[%clk 0:02:59]} 7. O-O {[%clk 0:02:26]}  a6 {[%clk 0:02:59]} 8. Na3 {[%clk 0:02:13]}  cxd4 {[%clk 0:02:58]} 9. cxd4 {[%clk 0:02:14]}  Bxa3 {[%clk 0:02:58]} 10. bxa3 {[%clk 0:02:13]}  Nge7 {[%clk 0:02:59]} 11. a4 {[%clk 0:02:11]}  O-O {[%clk 0:02:53]} 12. Ba3 {[%clk 0:02:10]}  h6 {[%clk 0:02:47]} 13. Rb1 {[%clk 0:01:51]}  Na5 {[%clk 0:02:45]} 14. Bc5 {[%clk 0:01:45]}  Rc6 {[%clk 0:02:26]} 15. Qd2 {[%clk 0:01:32]}  Re8 {[%clk 0:02:19]} 16. Qb4 {[%clk 0:01:15]}  Ng6 {[%clk 0:01:57]} 17. Bb6 {[%clk 0:01:10]}  Rxb6 {[%clk 0:01:55]} 18. Qxb6 {[%clk 0:01:11]}  Bxa4 {[%clk 0:01:45]} 19. Qb4 {[%clk 0:00:58]}  Bc6 {[%clk 0:01:41]} 20. Rfc1 {[%clk 0:00:57]}  Nf4 {[%clk 0:01:38]} 21. Bf1 {[%clk 0:00:57]}  Nc4 {[%clk 0:01:35]} 22. Nd2 {[%clk 0:00:51]}  Qg5 {[%clk 0:01:24]} 23. Nxc4 {[%clk 0:00:29]}  Nh3+ {[%clk 0:01:16]} 24. Kh1 {[%clk 0:00:29]}  dxc4 {[%clk 0:01:00]} 25. Qb2 {[%clk 0:00:20]}  b5 {[%clk 0:00:20]} 26. Rc3 {[%clk 0:00:19]}  Nf4 {[%clk 0:00:16]} 27. Rg3 {[%clk 0:00:18]}  Qf5 {[%clk 0:00:17]} 28. Rd1 {[%clk 0:00:14]}  Nd5 {[%clk 0:00:15]} 29. Qb1 {[%clk 0:00:13]}  Qxb1 {[%clk 0:00:14]} 30. Rxb1 {[%clk 0:00:14]}  c3 {[%clk 0:00:12]} 31. Bd3 {[%clk 0:00:13]}  Rc8 {[%clk 0:00:11]} 32. Be4 {[%clk 0:00:12]}  Ne7 {[%clk 0:00:07]} 33. Bxc6 {[%clk 0:00:11]}  Rxc6 {[%clk 0:00:08]} 34. Kg1 {[%clk 0:00:10]}  Nd5 {[%clk 0:00:09]} 35. Kf1 {[%clk 0:00:10]}  b4 {[%clk 0:00:10]} 36. Ke1 {[%clk 0:00:10]}  a5 {[%clk 0:00:11]} 37. Kd1 {[%clk 0:00:11]}  a4 {[%clk 0:00:12]} 38. Kc2 {[%clk 0:00:10]}  b3+ {[%clk 0:00:10]} 39. axb3 {[%clk 0:00:10]}  Nb4+ {[%clk 0:00:11]} 40. Kc1 {[%clk 0:00:09]}  a3 {[%clk 0:00:11]} 41. Ra1 {[%clk 0:00:09]}  a2 {[%clk 0:00:12]} 42. Re3 {[%clk 0:00:09]}  Kf8 {[%clk 0:00:11]} 43. Re2 {[%clk 0:00:09]}  Ke7 {[%clk 0:00:11]} 44. Rexa2 {[%clk 0:00:09]}  c2 {[%clk 0:00:09]} 45. Ra7+ {[%clk 0:00:09]}  Kf8 {[%clk 0:00:09]} 46. Kd2 {[%clk 0:00:10]}  Kg8 {[%clk 0:00:07]} 47. Rc1 {[%clk 0:00:10]}  Kh7 {[%clk 0:00:08]} 48. Rxc2 {[%clk 0:00:11]}  Nxc2 {[%clk 0:00:07]} 49. Ra4 {[%clk 0:00:10]}  Kg6 {[%clk 0:00:05]} 50. Rc4 {[%clk 0:00:10]}  Kf5 {[%clk 0:00:06]} 51. Rxc6 {[%clk 0:00:10]}  Nxd4 {[%clk 0:00:06]} 52. Rc4 {[%clk 0:00:10]}  Nxb3+ {[%clk 0:00:06]} 53. Ke3 {[%clk 0:00:10]}  Na5 {[%clk 0:00:06]} 54. Rc5 {[%clk 0:00:10]}  Nb7 {[%clk 0:00:05]} 55. Rc7 {[%clk 0:00:10]}  Na5 {[%clk 0:00:06]} 56. Rxf7+ {[%clk 0:00:11]}  Kxe5 {[%clk 0:00:06]} 57. Rxg7 {[%clk 0:00:11]}  Nc4+ {[%clk 0:00:06]} 58. Kf3 {[%clk 0:00:12]}  Nd6 {[%clk 0:00:07]} 59. Kg3 {[%clk 0:00:11]}  Nf5+ {[%clk 0:00:08]} 60. Kg4 {[%clk 0:00:10]}  Nxg7 {[%clk 0:00:09]} 61. h4 {[%clk 0:00:10]}  Kf6 {[%clk 0:00:09]} 62. Kf4 {[%clk 0:00:09]}  e5+ {[%clk 0:00:09]} 63. Ke4 {[%clk 0:00:09]}  Ne6 {[%clk 0:00:10]} 64. g4 {[%clk 0:00:09]}  Nf4 {[%clk 0:00:10]} 65. f3 {[%clk 0:00:09]}  Ke6 {[%clk 0:00:09]} 66. g5 {[%clk 0:00:08]}  h5 {[%clk 0:00:09]} 67. Ke3 {[%clk 0:00:08]}  Ng6 {[%clk 0:00:10]} 68. Ke4 {[%clk 0:00:06]}  Nxh4 {[%clk 0:00:10]} 69. f4 {[%clk 0:00:06]}  exf4 {[%clk 0:00:09]} 70. Kxf4 {[%clk 0:00:07]}  Ng6+ {[%clk 0:00:10]} 71. Ke4 {[%clk 0:00:07]}  h4 {[%clk 0:00:09]} 72. Kf3 {[%clk 0:00:06]}  Kf5 {[%clk 0:00:09]} 73. Kg2 {[%clk 0:00:07]}  Kxg5 {[%clk 0:00:10]} 74. Kh3 {[%clk 0:00:07]}  Nf4+ {[%clk 0:00:10]} 75. Kh2 {[%clk 0:00:07]}  Nd3 {[%clk 0:00:11]} 76. Kh3 {[%clk 0:00:08]}  Ne5 {[%clk 0:00:12]} 77. Kg2 {[%clk 0:00:08]}  Kg4 {[%clk 0:00:12]} 78. Kh2 {[%clk 0:00:08]}  Nc4 {[%clk 0:00:12]} 79. Kg2 {[%clk 0:00:09]}  Nb2 {[%clk 0:00:12]} 80. Kh2 {[%clk 0:00:10]}  Nd3 {[%clk 0:00:12]} 81. Kg2 {[%clk 0:00:11]}  h3+ {[%clk 0:00:12]} 82. Kh2 {[%clk 0:00:11]}  Kh4 {[%clk 0:00:13]} 83. Kh1 {[%clk 0:00:11]}  Nf2+ {[%clk 0:00:12]} 84. Kg1 {[%clk 0:00:12]}  Kg3 {[%clk 0:00:12]} 85. Kf1 {[%clk 0:00:11]}  h2 {[%clk 0:00:12]} 0-1


[Site "https://www.chess.com"]